fUST/lending_fUST_20250607
["ID","MTS","AMOUNT","RATE_DAILY","PERIOD"]
[364910121,1749294647928,-264.97670113,0.00022509,2]
[364910122,1749294647940,-561.94793586,0.00022524,2]
[364910123,1749294647950,-440.0,0.00022524,2]
[364910124,1749294647960,-951.05,0.00022524,2]
[364910125,1749294647970,-1463.92,0.00022524,2]
[364910126,1749294647980,-440.0,0.00022524,2]
[364910127,1749294647991,-942.82,0.00022524,2]
[364910128,1749294648001,-1420.34,0.00022524,2]
[364910129,1749294648011,-440.0,0.00022524,2]
[364910130,1749294648021,-440.0,0.00022524,2]
[364910131,1749294648031,-440.0,0.00022524,2]
[364910132,1749294648042,-983.93,0.00022524,2]
[364910133,1749294648052,-1289.59,0.00022524,2]
[364910134,1749294648062,-440.0,0.00022524,2]
[364910135,1749294648073,-553.04,0.00022524,2]
[364910136,1749294648083,-440.0,0.00022524,2]
[364910137,1749294648094,-440.0,0.00022526,2]
[364910138,1749294648106,-440.0,0.00022526,2]
[364910139,1749294648115,-440.0,0.00022526,2]
[364910140,1749294648125,-440.0,0.00022526,2]
[364910141,1749294648137,-440.0,0.00022526,2]
[364910142,1749294648147,-440.0,0.00022526,2]
[364910143,1749294648158,-440.0,0.00022526,2]
[364910144,1749294648167,-440.0,0.00022526,2]
[364910145,1749294648176,-1686.44,0.00022526,2]
[364910146,1749294648186,-440.0,0.00022526,2]
[364910147,1749294648195,-440.0,0.00022526,2]
[364910148,1749294648205,-440.0,0.00022526,2]
[364910149,1749294648216,-626.62,0.00022526,2]
[364910150,1749294648226,-360.0,0.00022526,2]
[364910151,1749294648236,-440.0,0.00022526,2]
[364910152,1749294648246,-440.0,0.00022526,2]
[364910153,1749294648256,-470.89,0.00022526,2]
[364910154,1749294648267,-1096.21,0.00022526,2]
[364910155,1749294648277,-440.0,0.00022526,2]
[364910156,1749294648287,-634.09,0.00022526,2]
[364910157,1749294648297,-440.0,0.00022526,2]
[364910158,1749294648307,-440.0,0.00022526,2]
[364910159,1749294648317,-440.0,0.00022527,2]
[364910160,1749294648326,-440.0,0.00022527,2]
[364910161,1749294648336,-440.0,0.00022527,2]
[364910162,1749294648346,-453.57,0.00022527,2]
[364910163,1749294648356,-629.25,0.00022527,2]
[364910164,1749294648366,-670.29,0.00022527,2]
[364910165,1749294648376,-440.0,0.00022527,2]
[364910166,1749294648386,-440.0,0.00022528,2]
[364910167,1749294648396,-440.0,0.00022528,2]
[364910168,1749294648405,-440.0,0.00022528,2]
[364910169,1749294648415,-440.0,0.00022528,2]
[364910170,1749294648426,-440.0,0.00022528,2]
[364910171,1749294648435,-208.12,0.00022528,2]
[364910172,1749294648445,-440.0,0.00022528,2]
[364910173,1749294648455,-440.0,0.00022528,2]
[364910174,1749294648465,-504.32,0.00022528,2]
[364910175,1749294648475,-440.0,0.00022528,2]
[364910176,1749294648485,-440.0,0.00022528,2]
[364910177,1749294648494,-723.492441,0.0002254,3]
[364910178,1749294648504,-1185.08684636,0.00022555,7]
[364910179,1749294648513,-2500.0,0.00022572,2]
[364910180,1749294648523,-1500.0,0.00022649,2]
[364910181,1749294648533,-151.0,0.00022691,7]
[364910182,1749294648542,-1185.08684636,0.00022693,7]
[364910183,1749294648553,-151.0,0.000227,9]
[364910184,1749294648563,-1498.8826,0.00022712,2]
[364910185,1749294648573,-1200.0,0.00022712,2]
[364910186,1749294648583,-440.0,0.00022798,2]
[364910187,1749294648593,-951.05,0.00022798,2]
[364910188,1749294648602,-1463.92,0.00022798,2]
[364910189,1749294648612,-440.0,0.00022798,2]
[364910190,1749294648623,-942.82,0.00022798,2]
[364910191,1749294648633,-1420.34,0.00022798,2]
[364910192,1749294648643,-504.73235773,0.00022798,2]
[364910193,1749294648653,-440.0,0.00022798,2]
[364910194,1749294648663,-370.0,0.00022798,2]
[364910195,1749294648673,-983.93,0.00022798,2]
[364910196,1749294648683,-1289.59,0.00022798,2]
[364910197,1749294648693,-440.0,0.00022798,2]
[364910198,1749294648704,-553.04,0.00022798,2]
[364910199,1749294648714,-440.0,0.00022798,2]
[364910200,1749294648723,-440.0,0.000228,2]
[364910201,1749294648733,-440.0,0.000228,2]
[364910202,1749294648742,-440.0,0.000228,2]
[364910203,1749294648751,-440.0,0.000228,2]
[364910204,1749294648760,-440.0,0.000228,2]
[364910205,1749294648770,-440.0,0.000228,2]
[364910206,1749294648780,-440.0,0.000228,2]
[364910207,1749294648790,-440.0,0.000228,2]
[364910208,1749294648800,-1686.44,0.000228,2]
[364910209,1749294648810,-440.0,0.000228,2]
[364910210,1749294648820,-440.0,0.000228,2]
[364910211,1749294648830,-440.0,0.000228,2]
[364910212,1749294648840,-626.62,0.000228,2]
[364910213,1749294648849,-440.0,0.000228,2]
[364910214,1749294648859,-442.55,0.000228,2]
[364910215,1749294648870,-470.89,0.000228,2]
[364910216,1749294648885,-1096.21,0.000228,2]
[364910217,1749294648896,-440.0,0.000228,2]
[364910218,1749294648906,-634.09,0.000228,2]
[364910219,1749294648916,-440.0,0.000228,2]
[364910220,1749294648926,-440.0,0.000228,2]
[364910221,1749294648936,-500.0,0.000228,8]
[364910222,1749294648947,-440.0,0.00022801,2]
[364910223,1749294648958,-440.0,0.00022801,2]
[364910224,1749294649065,-453.57,0.00022801,2]
[364910225,1749294649076,-629.25,0.00022801,2]
[364910226,1749294649087,-670.29,0.00022801,2]
[364910227,1749294649097,-440.0,0.00022801,2]
[364910228,1749294649107,-465.60127328,0.00022802,2]
[364910229,1749294649118,-440.0,0.00022802,2]
[364910230,1749294649128,-440.0,0.00022802,2]
[364910231,1749294649138,-440.0,0.00022802,2]
[364910232,1749294649148,-440.0,0.00022802,2]
[364910233,1749294649159,-440.0,0.00022802,2]
[364910234,1749294649168,-440.0,0.00022802,2]
[364910235,1749294649179,-440.0,0.00022802,2]
[364910236,1749294649189,-361.58406986,0.00022802,2]
[364910237,1749294649199,-347.58188,0.00022803,7]
[364910238,1749294649210,-347.58188,0.00022803,7]
[364910239,1749294649219,-1185.08684636,0.00022831,8]
[364910240,1749294649229,-4698.6,0.00022893,2]
[364910241,1749294649239,-501.7732377,0.00022896,2]
[364910242,1749294649248,-500.0,0.000229,8]
[364910243,1749294649259,-151.0,0.000229,7]
[364910244,1749294649268,-4645.9548662,0.000229,2]
[364910245,1749294649279,-168.13121494,0.000229,2]
[364910246,1749294649290,-700.0,0.00022965,2]
[364910247,1749294649301,-1185.08684636,0.00022969,8]
[364910248,1749294649311,-500.61190275,0.00022973,2]
[364910249,1749294649321,-152.66634972,0.00022973,2]
[364910250,1749294649331,-501.4503277,0.00022973,2]
[364910251,1749294649342,-500.83393245,0.00022973,2]
[364910252,1749294649352,-500.96265011,0.00022973,2]
[364910253,1749294649362,-500.0,0.00022973,2]
[364910254,1749294649372,-501.11093402,0.00022973,2]
[364910255,1749294649382,-502.15774599,0.00022973,2]
[364910256,1749294649393,-500.22691981,0.00022973,2]
[364910257,1749294649403,-150.0,0.00022973,2]
[364910258,1749294649414,-75439.40478762,0.00023,2]
[364910259,1749294649424,-632826.95082786,0.00023,2]
[364910260,1749294649434,-11623.87744826,0.00023,2]
[364910261,1749294649444,-9271.31613378,0.00023,2]
[364910262,1749294649453,-200000.0,0.00023,2]
[364910263,1749294649463,-10000.0,0.00023,5]
[364910264,1749294649473,-128188.0,0.00023,2]
[364910265,1749294649483,-1000.0,0.00023,23]
[364910266,1749294649494,-2000.0,0.00023,2]
[364910267,1749294649503,-177.0,0.00023,10]
[364910268,1749294649513,-177.0,0.00023,10]
[364910269,1749294649523,-712.17,0.00023,5]
[364910270,1749294649533,-155.149337,0.00023,7]
[364910271,1749294649543,-151.0,0.00023,7]
[364910272,1749294649553,-151.0,0.00023,7]
[364910273,1749294649563,-151.0,0.00023,7]
[364910274,1749294649573,-113.40541843,0.00023,7]
[364910275,1749294649669,-37.59458157,0.00023,7]
[364910276,1749294649679,-151.0,0.00023,7]
[364910277,1749294649688,-151.0,0.00023,7]
[364910278,1749294649699,-151.0,0.00023,7]
[364910279,1749294649709,-151.0,0.00023,7]
[364910280,1749294649718,-87.02531841,0.00023,2]
[364910281,1749294650088,-757.0,0.00019786,2]
[364910282,1749294650100,-1216.76,0.00019786,2]
[364910283,1749294650111,-440.0,0.00019788,2]
[364910284,1749294650121,-1973.76,0.0002006,2]
[364910285,1749294650131,-440.0,0.00020062,2]
[364910286,1749294650142,-160.0,0.00020225,2]
[364910287,1749294650151,-160.0,0.00020225,2]
[364910288,1749294650161,-1973.76,0.00020334,2]
[364910289,1749294650171,-440.0,0.00020336,2]
[364910290,1749294650180,-1973.76,0.00020608,2]
[364910291,1749294650190,-440.0,0.0002061,2]
[364910292,1749294650200,-1973.76,0.00020882,2]
[364910293,1749294650210,-440.0,0.00020884,2]
[364910294,1749294650220,-1973.76,0.00021156,2]
[364910295,1749294650231,-233.05673029,0.00021158,2]
[364910296,1749294650240,-1053.90808232,0.0002143,2]
[364910297,1749294650256,-919.85191768,0.0002143,2]
[364910298,1749294650266,-12.07541823,0.00021704,2]
[364910299,1749294650278,-480.79998371,0.00021704,2]
[364910300,1749294650381,-440.0,0.00019788,2]
[364910301,1749294650392,-540.0,0.00020062,2]
[364910302,1749294650401,-160.0,0.00020225,2]
[364910303,1749294650412,-767.18106817,0.00021704,2]
[364910304,1749294650425,-713.70352989,0.00021704,2]
[364910305,1749294650434,-1973.76,0.00021978,2]
[364910306,1749294650444,-1973.76,0.00022252,2]
[364910307,1749294650453,-1973.76,0.00022526,2]
[364910308,1749294650463,-1973.76,0.000228,2]
[364910309,1749294650473,-21684.20925513,0.00023,2]
[364910310,1749294650487,-20258.79542646,0.00023,2]
[364910311,1749294650498,-347.58188,0.00023,7]
[364910312,1749294650508,-347.58188,0.00023,7]
[364910313,1749294650518,-151.0,0.00023,7]
[364910314,1749294650529,-347.58188,0.00023,7]
[364910315,1749294650538,-151.0,0.00023,7]
[364910316,1749294650547,-151.0,0.00023,7]
[364910317,1749294650558,-347.58188,0.00023,7]
[364910318,1749294650567,-347.58188,0.00023,7]
[364910319,1749294650577,-347.58188,0.00023,7]
[364910320,1749294650587,-486.169621,0.00023,30]
[364910321,1749294650598,-3902.62822269,0.00023,7]
[364910322,1749294650611,-7949.31531304,0.00023,7]
[364910323,1749294650622,-255.0,0.0002301,2]
[364910324,1749294650631,-255.0,0.00023015,2]
[364910325,1749294650641,-255.0,0.0002302,2]
[364910326,1749294650650,-255.0,0.00023025,2]
[364910327,1749294650661,-255.0,0.0002303,2]
[364910328,1749294650670,-255.0,0.00023035,2]
[364910329,1749294650766,-255.0,0.0002304,2]
[364910330,1749294650776,-255.0,0.00023045,2]
[364910331,1749294650786,-255.0,0.0002305,2]
[364910332,1749294650797,-383.9909579,0.00023055,2]
[364910333,1749294650808,-189.64832882,0.00023072,2]
[364910334,1749294650818,-951.05,0.00023072,2]
[364910335,1749294650828,-1463.92,0.00023072,2]
[364910336,1749294650838,-440.0,0.00023072,2]
[364910337,1749294650847,-942.82,0.00023072,2]
[364910338,1749294650858,-763.80811146,0.00023072,2]
[364910339,1749294706280,157.73893,0.00013699,2]
[364910345,1749294894160,551.33,0.00025479,120]
[364910346,1749294917129,827.0,0.00025479,120]
[364910421,1749295644178,-161.27367462,0.00018681,2]
[364910422,1749295644201,-300.0,0.00018775,2]
[364910423,1749295644225,-300.0,0.00018776,2]
[364910424,1749295644249,-181.8462112,0.00018776,2]
[364910425,1749295644271,-500.0,0.00018776,2]
[364910426,1749295644294,-500.0,0.00018776,2]
[364910427,1749295644318,-593.47008148,0.00018776,2]
[364910428,1749295644341,-231.38900353,0.00018776,2]
[364910429,1749295644365,-500.0,0.00018776,2]
[364910430,1749295644387,-259.64767489,0.00018776,2]
[364910435,1749295723055,603.999999,0.0002,120]
[364910437,1749295723565,1225.34980162,0.00024635,120]
[364910463,1749295761158,163.634894,0.00013699,2]
[364910517,1749295832570,-300.0,0.00018774,2]
[364910518,1749295832580,-850.70997752,0.00018774,2]
[364910519,1749295832591,-420.48600001,0.00018774,2]
[364910520,1749295832623,-322.17293912,0.00018774,2]
[364910527,1749295832733,-3276.63108335,0.00018774,2]
[364910529,1749295832743,-500.0,0.00018775,2]
[364910531,1749295832752,-500.0,0.00018775,2]
[364910532,1749295832761,-500.0,0.00018775,2]
[364910534,1749295832771,-240.1893264,0.00018775,2]
[364910535,1749295832781,-500.0,0.00018775,2]
[364910536,1749295832790,-500.0,0.00018775,2]
[364910537,1749295832800,-500.0,0.00018775,2]
[364910538,1749295832810,-500.0,0.00018775,2]
[364910539,1749295832820,-172.59527901,0.00018775,2]
[364910540,1749295832829,-500.0,0.00018775,2]
[364910541,1749295832839,-500.0,0.00018775,2]
[364910542,1749295832849,-500.0,0.00018775,2]
[364910543,1749295832859,-500.0,0.00018775,2]
[364910545,1749295832869,-439.1389335,0.00018775,2]
[364910547,1749295832878,-500.0,0.00018775,2]
[364910549,1749295832888,-500.0,0.00018775,2]
[364910551,1749295832897,-500.0,0.00018775,2]
[364910553,1749295832906,-573.13890036,0.00018775,2]
[364910555,1749295832916,-500.0,0.00018775,2]
[364910556,1749295832926,-500.0,0.00018775,2]
[364910557,1749295832936,-401.64727092,0.00018775,2]
[364910558,1749295832946,-500.0,0.00018775,2]
[364910559,1749295832955,-500.0,0.00018775,2]
[364910560,1749295832966,-500.0,0.00018775,2]
[364910561,1749295832976,-500.0,0.00018775,2]
[364910562,1749295832985,-10000.0,0.00018781,2]
[364910563,1749295832995,-4498.2484203,0.00018782,2]
[364910564,1749295833005,-159.53536825,0.00019078,2]
[364910565,1749295833015,-440.0,0.00019178,2]
[364910566,1749295833024,-373.29590359,0.00019178,2]
[364910567,1749295833034,-430.0,0.00019178,2]
[364910568,1749295833045,-440.0,0.00019178,2]
[364910569,1749295833055,-404.77014881,0.00019178,2]
[364910570,1749295833067,-400.01368787,0.00019178,2]
[364910571,1749295833077,-440.0,0.00019178,2]
[364910572,1749295833086,-439.95408627,0.00019178,2]
[364910573,1749295833096,-440.0,0.00019178,2]
[364910574,1749295833107,-440.0,0.00019178,2]
[364910575,1749295833117,-440.0,0.00019178,2]
[364910576,1749295833127,-440.0,0.00019178,2]
[364910577,1749295833138,-440.0,0.00019178,2]
[364910578,1749295833148,-440.0,0.00019178,2]
[364910579,1749295833157,-440.0,0.00019178,2]
[364910580,1749295833168,-500.0,0.00019178,2]
[364910581,1749295833179,-500.0,0.00019178,2]
[364910582,1749295833189,-500.0,0.00019178,2]
[364910583,1749295833200,-500.0,0.00019178,2]
[364910584,1749295833210,-440.0,0.00019178,2]
[364910585,1749295833221,-440.0,0.00019178,2]
[364910586,1749295833231,-430.0,0.00019178,2]
[364910587,1749295833241,-440.0,0.00019178,2]
[364910588,1749295833251,-159.28421111,0.00019178,2]
[364910589,1749295833260,-440.0,0.00019178,2]
[364910590,1749295833271,-440.0,0.00019178,2]
[364910591,1749295833280,-440.0,0.00019178,2]
[364910592,1749295833291,-500.0,0.00019178,2]
[364910593,1749295833304,-500.0,0.00019178,2]
[364910594,1749295833314,-500.0,0.00019178,2]
[364910595,1749295833326,-500.0,0.00019178,2]
[364910596,1749295833336,-440.0,0.00019178,2]
[364910597,1749295833347,-430.0,0.00019178,2]
[364910598,1749295833356,-440.0,0.00019178,2]
[364910599,1749295833366,-440.0,0.00019178,2]
[364910600,1749295833375,-440.0,0.00019178,2]
[364910601,1749295833385,-440.0,0.00019178,2]
[364910602,1749295833397,-440.0,0.00019178,2]
[364910603,1749295833407,-440.0,0.00019178,2]
[364910604,1749295833418,-440.0,0.00019178,2]
[364910605,1749295833428,-440.0,0.00019178,2]
[364910606,1749295833580,-440.0,0.00019178,2]
[364910607,1749295833591,-440.0,0.00019178,2]
[364910608,1749295833601,-440.0,0.00019178,2]
[364910609,1749295833613,-430.0,0.00019178,2]
[364910610,1749295833623,-440.0,0.00019178,2]
[364910611,1749295833635,-440.0,0.00019178,2]
[364910612,1749295833645,-305.38500259,0.00019178,2]
[364910613,1749295833655,-430.0,0.00019178,2]
[364910614,1749295833665,-504.38567008,0.00019178,2]
[364910615,1749295833676,-404.86704458,0.00019178,2]
[364910616,1749295833686,-440.0,0.00019178,2]
[364910617,1749295833697,-440.0,0.00019178,2]
[364910618,1749295833708,-440.0,0.00019178,2]
[364910619,1749295833718,-440.0,0.00019178,2]
[364910620,1749295833728,-440.0,0.00019178,2]
[364910621,1749295833738,-440.0,0.00019178,2]
[364910622,1749295833748,-440.0,0.00019178,2]
[364910623,1749295833760,-440.0,0.00019178,2]
[364910624,1749295833770,-440.0,0.00019178,2]
[364910625,1749295833780,-440.0,0.00019178,2]
[364910626,1749295833790,-440.0,0.00019178,2]
[364910627,1749295833800,-403.15516921,0.00019178,2]
[364910628,1749295833810,-440.0,0.00019178,2]
[364910629,1749295833820,-465.7758801,0.00019178,2]
[364910630,1749295833830,-504.56715843,0.00019178,2]
[364910631,1749295833841,-583.06565874,0.00019178,2]
[364910632,1749295833851,-430.0,0.00019178,2]
[364910633,1749295833862,-440.0,0.00019178,2]
[364910634,1749295833872,-430.0,0.00019178,2]
[364910635,1749295833882,-440.0,0.00019178,2]
[364910636,1749295833892,-430.0,0.00019178,2]
[364910637,1749295833902,-440.0,0.00019178,2]
[364910638,1749295833912,-440.0,0.00019178,2]
[364910639,1749295833936,-440.0,0.00019178,2]
[364910640,1749295833947,-440.0,0.00019178,2]
[364910641,1749295833958,-440.0,0.00019178,2]
[364910642,1749295833969,-441.19865836,0.00019178,2]
[364910643,1749295833980,-431.1935228,0.00019178,2]
[364910644,1749295833991,-440.0,0.00019178,2]
[364910645,1749295834003,-430.0,0.00019178,2]
[364910646,1749295834014,-440.0,0.00019178,2]
[364910647,1749295834026,-440.0,0.00019178,2]
[364910648,1749295834036,-440.0,0.00019178,2]
[364910649,1749295834047,-440.0,0.00019178,2]
[364910650,1749295834057,-430.0,0.00019178,2]
[364910651,1749295834068,-440.0,0.00019178,2]
[364910652,1749295834079,-454.5369647,0.00019178,2]
[364910653,1749295834090,-342.88022961,0.00019178,2]
[364910654,1749295834100,-440.0,0.00019178,2]
[364910655,1749295834112,-440.0,0.00019178,2]
[364910656,1749295834122,-430.0,0.00019178,2]
[364910657,1749295834132,-440.0,0.00019178,2]
[364910658,1749295834142,-440.0,0.00019178,2]
[364910659,1749295834152,-427.06822049,0.00019178,2]
[364910660,1749295834163,-440.0,0.00019178,2]
[364910661,1749295834173,-440.0,0.00019178,2]
[364910662,1749295834184,-440.0,0.00019178,2]
[364910663,1749295834195,-440.0,0.00019178,2]
[364910664,1749295834205,-440.0,0.00019178,2]
[364910665,1749295834216,-1478.67,0.00019178,2]
[364910666,1749295834227,-432.63476517,0.00019178,2]
[364910667,1749295834238,-440.0,0.00019178,2]
[364910668,1749295834249,-440.0,0.00019178,2]
[364910669,1749295834259,-434.46200891,0.00019178,2]
[364910670,1749295834271,-440.0,0.00019178,2]
[364910671,1749295834281,-440.0,0.00019178,2]
[364910672,1749295834291,-440.0,0.00019178,2]
[364910673,1749295834307,-440.0,0.00019178,2]
[364910674,1749295834318,-440.0,0.00019178,2]
[364910675,1749295834329,-236.91088962,0.00019178,2]
[364910676,1749295834341,-402.68455219,0.00019178,2]
[364910677,1749295834352,-440.0,0.00019178,2]
[364910678,1749295834364,-430.0,0.00019178,2]
[364910679,1749295834376,-273.06803092,0.00019178,2]
[364910680,1749295834387,-430.0,0.00019178,2]
[364910681,1749295834398,-440.0,0.00019178,2]
[364910682,1749295834409,-430.0,0.00019178,2]
[364910683,1749295834419,-430.0,0.00019178,2]
[364910684,1749295834429,-440.0,0.00019178,2]
[364910685,1749295834440,-430.0,0.00019178,2]
[364910686,1749295834451,-440.0,0.00019178,2]
[364910687,1749295834468,-440.0,0.00019178,2]
[364910688,1749295834478,-440.0,0.00019178,2]
[364910689,1749295834487,-440.0,0.00019178,2]
[364910690,1749295834498,-403.61947794,0.00019178,2]
[364910691,1749295834509,-440.0,0.00019178,2]
[364910692,1749295834519,-440.0,0.00019178,2]
[364910693,1749295834529,-493.84,0.00019178,2]
[364910694,1749295834539,-440.0,0.00019178,2]
[364910695,1749295834554,-440.0,0.00019178,2]
[364910696,1749295834564,-440.0,0.00019178,2]
[364910697,1749295834574,-440.0,0.00019178,2]
[364910698,1749295834585,-440.0,0.00019178,2]
[364910699,1749295834595,-430.0,0.00019178,2]
[364910700,1749295834605,-440.0,0.00019178,2]
[364910701,1749295834616,-430.0,0.00019178,2]
[364910702,1749295834626,-440.0,0.00019178,2]
[364910703,1749295834635,-440.0,0.00019178,2]
[364910704,1749295834645,-784.26,0.00019178,2]
[364910705,1749295834655,-401.56837594,0.00019178,2]
[364910706,1749295834665,-440.56465214,0.00019178,2]
[364910707,1749295834676,-500.0,0.00019178,2]
[364910708,1749295834686,-500.0,0.00019178,2]
[364910709,1749295834696,-500.0,0.00019178,2]
[364910710,1749295834706,-500.0,0.00019178,2]
[364910711,1749295834716,-500.0,0.00019178,2]
[364910712,1749295834726,-440.0,0.00019178,2]
[364910713,1749295834737,-440.0,0.00019178,2]
[364910714,1749295834747,-440.0,0.00019178,2]
[364910715,1749295834757,-440.0,0.00019178,2]
[364910716,1749295834767,-440.0,0.00019178,2]
[364910717,1749295834777,-440.0,0.00019178,2]
[364910718,1749295834788,-440.0,0.00019178,2]
[364910719,1749295834797,-416.96465527,0.00019178,2]
[364910720,1749295834808,-440.0,0.00019178,2]
[364910721,1749295834818,-430.0,0.00019178,2]
[364910722,1749295834828,-440.0,0.00019178,2]
[364910723,1749295834844,-174.83523384,0.00019178,2]
[364910724,1749295834860,-430.0,0.00019178,2]
[364910725,1749295834876,-440.0,0.00019178,2]
[364910726,1749295834891,-440.0,0.00019178,2]
[364910727,1749295834907,-440.0,0.00019178,2]
[364910728,1749295834920,-440.0,0.00019178,2]
[364910729,1749295834931,-440.0,0.00019178,2]
[364910730,1749295834948,-440.0,0.00019178,2]
[364910731,1749295834962,-430.0,0.00019178,2]
[364910732,1749295834975,-440.0,0.00019178,2]
[364910733,1749295834988,-440.0,0.00019178,2]
[364910734,1749295835002,-440.0,0.00019178,2]
[364910735,1749295835016,-440.0,0.00019178,2]
[364910736,1749295835029,-430.0,0.00019178,2]
[364910737,1749295835042,-440.0,0.00019178,2]
[364910738,1749295835057,-440.0,0.00019178,2]
[364910739,1749295835070,-390.0,0.00019178,2]
[364910740,1749295835084,-440.0,0.00019178,2]
[364910741,1749295835098,-440.0,0.00019178,2]
[364910742,1749295835110,-430.0,0.00019178,2]
[364910743,1749295835124,-440.0,0.00019178,2]
[364910744,1749295835140,-440.0,0.00019178,2]
[364910745,1749295835153,-500.0,0.00019178,2]
[364910746,1749295835167,-500.0,0.00019178,2]
[364910747,1749295835182,-500.0,0.00019178,2]
[364910748,1749295835196,-500.0,0.00019178,2]
[364910749,1749295835209,-500.0,0.00019178,2]
[364910750,1749295835221,-500.0,0.00019178,2]
[364910751,1749295835233,-500.0,0.00019178,2]
[364910752,1749295835249,-500.0,0.00019178,2]
[364910753,1749295835263,-500.0,0.00019178,2]
[364910754,1749295835275,-500.0,0.00019178,2]
[364910755,1749295835288,-500.0,0.00019178,2]
[364910756,1749295835304,-500.0,0.00019178,2]
[364910757,1749295835319,-500.0,0.00019178,2]
[364910758,1749295835333,-595.98158836,0.00019178,2]
[364910759,1749295835348,-500.0,0.00019178,2]
[364910760,1749295835363,-500.0,0.00019178,2]
[364910761,1749295835378,-500.0,0.00019178,2]
[364910762,1749295835393,-500.0,0.00019178,2]
[364910763,1749295835408,-500.0,0.00019178,2]
[364910764,1749295835419,-500.0,0.00019178,2]
[364910765,1749295835431,-342.68980709,0.00019178,2]
[364910766,1749295835442,-198.74,0.00019178,2]
[364910767,1749295835453,-440.0,0.00019178,2]
[364910768,1749295835465,-440.0,0.00019178,2]
[364910769,1749295835479,-440.0,0.00019178,2]
[364910770,1749295835494,-1252.27,0.00019178,2]
[364910771,1749295835507,-440.0,0.00019178,2]
[364910772,1749295835520,-440.0,0.00019178,2]
[364910773,1749295835530,-451.57444017,0.00019178,2]
[364910774,1749295835543,-440.0,0.00019178,2]
[364910775,1749295835555,-440.58380918,0.00019178,2]
[364910776,1749295835573,-430.0,0.00019178,2]
[364910777,1749295835586,-440.0,0.00019178,2]
[364910778,1749295835597,-440.0,0.00019178,2]
[364910779,1749295835608,-440.0,0.00019178,2]
[364910780,1749295835619,-440.0,0.00019178,2]
[364910781,1749295835630,-440.0,0.00019178,2]
[364910782,1749295835642,-440.0,0.00019178,2]
[364910783,1749295835654,-1030.27,0.00019178,2]
[364910784,1749295835665,-431.21507499,0.00019178,2]
[364910785,1749295835677,-440.0,0.00019178,2]
[364910786,1749295835691,-440.0,0.00019178,2]
[364910787,1749295835704,-472.08,0.00019178,2]
[364910788,1749295835720,-440.0,0.00019178,2]
[364910789,1749295835732,-440.0,0.00019178,2]
[364910790,1749295835744,-430.0,0.00019178,2]
[364910791,1749295835757,-440.0,0.00019178,2]
[364910792,1749295835772,-440.0,0.00019178,2]
[364910793,1749295835784,-440.0,0.00019178,2]
[364910794,1749295835797,-440.0,0.00019178,2]
[364910795,1749295835809,-432.37513153,0.00019178,2]
[364910796,1749295835820,-440.0,0.00019178,2]
[364910797,1749295835832,-498.09,0.00019178,2]